[Event "EYCC Girls U10 2021"]
[Site "Tornelo"]
[Date "2021.10.15"]
[Round "9.9"]
[White "Nahapetyan, Ani"]
[Black "Huseynova, Dinara"]
[Result "1-0"]
[ECO "B13"]
[WhiteElo "1075"]
[BlackElo "1210"]
[Annotator "NA"]
[PlyCount "153"]
[EventDate "2021.10.15"]
[EventType "swiss"]
[EventCountry "NET"]
[SourceTitle "playchess.com"]
[Source "ChessBase"]
[SourceQuality "1"]
[TimeControl "5400+30"]

1. e4 {[%emt 0:00:30]} c6 {[%emt 0:00:34]} 2. d4 {[%emt 0:00:05]} d5 {[%emt 0:00:05]} 3. exd5 {[%emt 0:00:08]} cxd5 {[%emt 0:00:08]} 4. Bd3 {[%emt 0:00:17]} Nc6 {[%emt 0:00:14]} 5. c3 {[%emt 0:00:19]} Nf6 {[%emt 0:00:11]} 6. h3 {[%emt 0:00:18]} g6 {[%emt 0:00:10]} 7. Qc2 {[%emt 0:00:24]} Bg7 {[%emt 0:01:09]} 8. Nf3 {[%emt 0:01:59]} Kf8 {[%emt 0:01:12]} 9. Bf4 {[%emt 0:01:34]} e6 {[%emt 0:03:00]} 10. Nbd2 {[%emt 0:03:10]} Ke7 {[%emt 0:02:02]} 11. Qb3 {[%emt 0:03:47]} a6 {[%emt 0:04:03]} 12. a4 {[%emt 0:06:28]} Ke8 {[%emt 0:01:23]} 13. Rc1 {[%emt 0:12:13]} Ng8 {[%emt 0:04:04]} 14. c4 {[%emt 0:00:54]} Bh6 {[%emt 0:03:21]} 15. Bxh6 {[%emt 0:03:43]} Nxh6 {[%emt 0:02:42]} 16. O-O {[%emt 0:09:16]} Kf8 {[%emt 0:00:54]} 17. Rfe1 {[%emt 0:03:43]} Kg7 {[%emt 0:03:08]} 18. Qc3 {[%emt 0:05:50]} Qa5 {[%emt 0:01:36]} 19. Qxa5 {[%emt 0:01:21]} Nxa5 {[%emt 0:00:04]} 20. cxd5 {[%emt 0:00:47]} exd5 {[%emt 0:00:12]} 21. Rc5 {[%emt 0:01:57]} Nc6 {[%emt 0:00:38]} 22. Bb1 {[%emt 0:03:21]} Be6 {[%emt 0:01:11]} 23. Nb3 {[%emt 0:04:30]} Rac8 {[%emt 0:03:41]} 24. Ng5 {[%emt 0:07:58]} Rhe8 {[%emt 0:03:29]} 25. Rcc1 {[%emt 0:01:15]} Bf5 {[%emt 0:05:10]} 26. g4 {[%emt 0:03:18]} Bxb1 {[%emt 0:01:39]} 27. Rxb1 {[%emt 0:00:15]} b6 {[%emt 0:01:47]} 28. Rbc1 {[%emt 0:01:39]} Red8 {[%emt 0:03:43]} 29. Nf3 {[%emt 0:02:22]} Nb4 {[%emt 0:01:27]} 30. Rxc8 {[%emt 0:05:04]} Rxc8 {[%emt 0:00:04]} 31. Rc1 {[%emt 0:00:16]} Rxc1+ {[%emt 0:01:36]} 32. Nxc1 {[%emt 0:00:06]} Ng8 {[%emt 0:00:02]} 33. Ne5 {[%emt 0:01:30]} Nf6 {[%emt 0:01:41]} 34. Kf1 {[%emt 0:01:24]} Ne4 {[%emt 0:02:07]} 35. Ncd3 {[%emt 0:02:00]} Nxd3 {[%emt 0:04:13]} 36. Nxd3 {[%emt 0:00:07]} Nd2+ {[%emt 0:03:33]} 37. Ke2 {[%emt 0:01:30]} Nc4 {[%emt 0:00:02]} 38. Kd1 {[%emt 0:03:19]} b5 {[%emt 0:04:12]} 39. axb5 {[%emt 0:00:56]} axb5 {[%emt 0:00:17]} 40. Kc2 {[%emt 0:01:07]} Kf8 {[%emt 0:00:58]} 41. Nf4 {[%emt 0:00:22]} Nb6 {[%emt 0:00:08]} 42. Kb3 {[%emt 0:00:05]} Ke8 {[%emt 0:00:38]} 43. Kb4 {[%emt 0:00:10]} Nc4 {[%emt 0:00:25]} 44. b3 {[%emt 0:00:39]} Nd6 {[%emt 0:01:04]} 45. Nxd5 {[%emt 0:00:13]} Kd8 {[%emt 0:01:44]} 46. Nc3 {[%emt 0:00:25]} Kd7 {[%emt 0:00:27]} 47. Nxb5 {[%emt 0:00:25]} Ne4 {[%emt 0:00:07]} 48. f3 {[%emt 0:00:33]} Nd2 {[%emt 0:00:05]} 49. f4 {[%emt 0:00:27]} Kc6 {[%emt 0:00:39]} 50. Nc3 {[%emt 0:00:18]} Nf1 {[%emt 0:01:19]} 51. Ka5 {[%emt 0:01:13]} Ne3 {[%emt 0:00:20]} 52. b4 {[%emt 0:00:31]} Nc4+ {[%emt 0:01:16]} 53. Ka6 {[%emt 0:00:15]} Nd6 {[%emt 0:01:42]} 54. b5+ {[%emt 0:00:26]} Kc7 {[%emt 0:02:54]} 55. b6+ {[%emt 0:00:23]} Kb8 {[%emt 0:00:21]} 56. Na4 {[%emt 0:00:15]} Nc8 {[%emt 0:02:16]} 57. Nc5 {[%emt 0:00:41]} Nd6 {[%emt 0:00:19]} 58. b7 {[%emt 0:00:20]} Nxb7 {[%emt 0:00:23]} 59. Nxb7 {[%emt 0:00:04]} Kc7 {[%emt 0:00:06]} 60. Nc5 {[%emt 0:00:15]} Kd6 {[%emt 0:00:04]} 61. Kb5 {[%emt 0:00:18]} Kd5 {[%emt 0:00:04]} 62. Nb3 {[%emt 0:00:05]} h6 {[%emt 0:00:07]} 63. Kb6 {[%emt 0:00:14]} f5 {[%emt 0:01:30]} 64. gxf5 {[%emt 0:00:35]} gxf5 {[%emt 0:00:04]} 65. Kc7 {[%emt 0:00:03]} h5 {[%emt 0:00:04]} 66. Kd7 {[%emt 0:00:06]} h4 {[%emt 0:00:01]} 67. Ke7 {[%emt 0:00:13]} Ke4 {[%emt 0:00:06]} 68. Ke6 {[%emt 0:00:20]} Kxf4 {[%emt 0:00:02]} 69. d5 {[%emt 0:00:40]} Kg3 {[%emt 0:00:02]} 70. d6 {[%emt 0:00:03]} Kxh3 {[%emt 0:00:02]} 71. d7 {[%emt 0:00:03]} Kg2 {[%emt 0:00:03]} 72. d8=Q {[%emt 0:00:06]} h3 {[%emt 0:00:02]} 73. Qd2+ {[%emt 0:00:15]} Kg1 {[%emt 0:00:04]} 74. Qe3+ {[%emt 0:00:11]} Kg2 {[%emt 0:00:07]} 75. Nd2 {[%emt 0:00:22]} Kh2 {[%emt 0:01:10]} 76. Qf2+ {[%emt 0:00:26]} Kh1 {[%emt 0:00:04]} 77. Nf1 {[%emt 0:00:08]} 1-0

[Event "EYCC Girls U10 2021"]
[Site "Tornelo"]
[Date "2021.10.15"]
[Round "9.10"]
[White "Kuznetsova, Ekaterina A"]
[Black "Zhou, Leyi Charlotte"]
[Result "1-0"]
[ECO "D35"]
[WhiteElo "1085"]
[BlackElo "1199"]
[Annotator "NA"]
[PlyCount "109"]
[EventDate "2021.10.15"]
[EventType "swiss"]
[EventCountry "NET"]
[SourceTitle "playchess.com"]
[Source "ChessBase"]
[SourceQuality "1"]
[TimeControl "5400+30"]

1. d4 {[%emt 0:00:30]} d5 {[%emt 0:00:41]} 2. c4 {[%emt 0:00:05]} e6 {[%emt 0:00:18]} 3. Nc3 {[%emt 0:00:11]} Nf6 {[%emt 0:00:27]} 4. Bg5 {[%emt 0:00:15]} Be7 {[%emt 0:00:36]} 5. Nf3 {[%emt 0:00:43]} Nbd7 {[%emt 0:01:34]} 6. e3 {[%emt 0:00:58]} c6 {[%emt 0:00:46]} 7. cxd5 {[%emt 0:04:02]} exd5 {[%emt 0:00:34]} 8. Bd3 {[%emt 0:00:28]} O-O {[%emt 0:00:52]} 9. O-O {[%emt 0:00:28]} Re8 {[%emt 0:00:22]} 10. Re1 {[%emt 0:02:20]} Nf8 {[%emt 0:01:01]} 11. Ne5 {[%emt 0:04:53]} Bd6 {[%emt 0:01:28]} 12. f4 {[%emt 0:02:24]} Bb4 {[%emt 0:13:53]} 13. Qb3 {[%emt 0:05:09]} a5 {[%emt 0:03:03]} 14. a3 {[%emt 0:03:49]} Bd6 {[%emt 0:01:01]} 15. e4 {[%emt 0:16:07]} a4 {[%emt 0:03:28]} 16. Nxa4 {[%emt 0:06:06]} Bxe5 {[%emt 0:04:39]} 17. dxe5 {[%emt 0:04:18]} dxe4 {[%emt 0:08:34]} 18. Bc4 {[%emt 0:13:26]} Qd4+ {[%emt 0:02:57]} 19. Kh1 {[%emt 0:01:16]} Nd5 {[%emt 0:01:12]} 20. Rad1 {[%emt 0:03:36]} Qa7 {[%emt 0:02:21]} 21. Bxd5 {[%emt 0:02:04]} cxd5 {[%emt 0:01:18]} 22. Nb6 {[%emt 0:00:25]} Rb8 {[%emt 0:01:43]} 23. Nxc8 {[%emt 0:07:32]} Rbxc8 {[%emt 0:01:21]} 24. Re2 {[%emt 0:10:44]} Qa6 {[%emt 0:02:25]} 25. Qe3 {[%emt 0:03:39]} Qc4 {[%emt 0:03:01]} 26. Red2 {[%emt 0:02:45]} Rc5 {[%emt 0:06:09]} 27. b4 {[%emt 0:00:48]} Rb5 {[%emt 0:03:58]} 28. Rd4 {[%emt 0:00:26]} Qa2 {[%emt 0:01:12]} 29. R1d2 {[%emt 0:01:15]} Qb1+ {[%emt 0:01:35]} 30. Rd1 {[%emt 0:00:27]} Qc2 {[%emt 0:00:26]} 31. h3 {[%emt 0:02:01]} Ne6 {[%emt 0:01:20]} 32. Rxd5 {[%emt 0:01:56]} Rxd5 {[%emt 0:02:06]} 33. Rxd5 {[%emt 0:00:16]} Qc4 {[%emt 0:00:32]} 34. Ra5 {[%emt 0:00:58]} h6 {[%emt 0:00:46]} 35. Bh4 {[%emt 0:00:10]} Qf1+ {[%emt 0:00:53]} 36. Kh2 {[%emt 0:00:09]} Nxf4 {[%emt 0:00:40]} 37. Qxe4 {[%emt 0:01:01]} b6 {[%emt 0:01:06]} 38. Ra8 {[%emt 0:01:13]} Rxa8 {[%emt 0:01:22]} 39. Qxa8+ {[%emt 0:00:06]} Kh7 {[%emt 0:00:13]} 40. Qf3 {[%emt 0:00:13]} Qc4 {[%emt 0:01:24]} 41. Bg3 {[%emt 0:00:25]} Ne2 {[%emt 0:00:48]} 42. Qf1 {[%emt 0:00:31]} Qd3 {[%emt 0:01:38]} 43. Qf3 {[%emt 0:00:11]} Qc4 {[%emt 0:00:51]} 44. Bf2 {[%emt 0:00:28]} Nd4 {[%emt 0:00:49]} 45. Qe4+ {[%emt 0:00:11]} g6 {[%emt 0:03:19]} 46. Qxd4 {[%emt 0:00:09]} Qc1 {[%emt 0:02:12]} 47. Qxb6 {[%emt 0:00:14]} Qxa3 {[%emt 0:00:24]} 48. Qb7 {[%emt 0:00:17]} Qb3 {[%emt 0:01:30]} 49. b5 {[%emt 0:00:26]} Qc4 {[%emt 0:01:03]} 50. Bg3 {[%emt 0:00:26]} h5 {[%emt 0:01:15]} 51. h4 {[%emt 0:00:25]} g5 {[%emt 0:01:45]} 52. hxg5 {[%emt 0:00:29]} h4 {[%emt 0:00:09]} 53. g6+ {[%emt 0:00:05]} Kxg6 {[%emt 0:00:16]} 54. Qc6+ {[%emt 0:00:10]} Qe6 {[%emt 0:00:48]} 55. Qxe6+ {[%emt 0:00:10]} 1-0

[Event "EYCC Girls U10 2021"]
[Site "Tornelo"]
[Date "2021.10.15"]
[Round "9.12"]
[White "Garcia Rodriguez, Adriana"]
[Black "Sunea, Sara Maria"]
[Result "1/2-1/2"]
[ECO "B33"]
[WhiteElo "1160"]
[BlackElo "1342"]
[Annotator "NA"]
[PlyCount "94"]
[EventDate "2021.10.15"]
[EventType "swiss"]
[EventCountry "NET"]
[SourceTitle "playchess.com"]
[Source "ChessBase"]
[SourceQuality "1"]
[TimeControl "5400+30"]

1. e4 {[%emt 0:00:30]} c5 {[%emt 0:00:42]} 2. Nf3 {[%emt 0:00:16]} Nc6 {[%emt 0:00:16]} 3. d4 {[%emt 0:00:34]} cxd4 {[%emt 0:00:19]} 4. Nxd4 {[%emt 0:00:06]} Nf6 {[%emt 0:00:11]} 5. Nc3 {[%emt 0:00:23]} e5 {[%emt 0:00:41]} 6. Ndb5 {[%emt 0:01:00]} d6 {[%emt 0:00:13]} 7. Bg5 {[%emt 0:01:02]} a6 {[%emt 0:00:13]} 8. Na3 {[%emt 0:00:43]} b5 {[%emt 0:00:12]} 9. Nd5 {[%emt 0:00:33]} Be7 {[%emt 0:00:30]} 10. Bxf6 {[%emt 0:00:44]} Bxf6 {[%emt 0:00:19]} 11. c3 {[%emt 0:00:25]} Be6 {[%emt 0:00:57]} 12. Nc2 {[%emt 0:01:56]} Bg5 {[%emt 0:05:02]} 13. Nce3 {[%emt 0:03:25]} Bxe3 {[%emt 0:00:48]} 14. Nxe3 {[%emt 0:01:48]} O-O {[%emt 0:00:27]} 15. g3 {[%emt 0:01:49]} Qd7 {[%emt 0:01:06]} 16. Bg2 {[%emt 0:01:02]} Rad8 {[%emt 0:01:35]} 17. O-O {[%emt 0:02:00]} Bh3 {[%emt 0:00:50]} 18. Qc2 {[%emt 0:07:29]} Bxg2 {[%emt 0:01:42]} 19. Nxg2 {[%emt 0:01:36]} d5 {[%emt 0:00:48]} 20. Rad1 {[%emt 0:02:43]} d4 {[%emt 0:02:43]} 21. f4 {[%emt 0:09:17]} Qe6 {[%emt 0:06:39]} 22. fxe5 {[%emt 0:06:34]} Qxe5 {[%emt 0:01:28]} 23. Rf5 {[%emt 0:00:56]} d3 {[%emt 0:04:27]} 24. Rxd3 {[%emt 0:07:23]} Qxe4 {[%emt 0:00:52]} 25. Rff3 {[%emt 0:01:32]} Ne5 {[%emt 0:13:03]} 26. Rfe3 {[%emt 0:05:41]} Qxd3 {[%emt 0:12:46]} 27. Rxd3 {[%emt 0:02:22]} Nxd3 {[%emt 0:04:04]} 28. h4 {[%emt 0:02:48]} Rfe8 {[%emt 0:00:18]} 29. Kh2 {[%emt 0:01:31]} Ne1 {[%emt 0:00:18]} 30. Nxe1 {[%emt 0:00:27]} Rxe1 {[%emt 0:00:20]} 31. c4 {[%emt 0:00:56]} Red1 {[%emt 0:00:34]} 32. Kh3 {[%emt 0:02:27]} R1d2 {[%emt 0:10:41]} 33. Qc3 {[%emt 0:06:10]} h6 {[%emt 0:06:43]} 34. cxb5 {[%emt 0:01:10]} axb5 {[%emt 0:02:40]} 35. Qe5 {[%emt 0:05:12]} R2d5 {[%emt 0:00:46]} 36. Qc3 {[%emt 0:03:02]} f6 {[%emt 0:00:50]} 37. Qc6 {[%emt 0:05:32]} Kh7 {[%emt 0:00:59]} 38. a4 {[%emt 0:02:23]} bxa4 {[%emt 0:00:37]} 39. Qxa4 {[%emt 0:00:10]} h5 {[%emt 0:00:25]} 40. b4 {[%emt 0:00:44]} Rd2 {[%emt 0:00:39]} 41. Qc6 {[%emt 0:02:10]} R8d4 {[%emt 0:02:33]} 42. b5 {[%emt 0:00:42]} Rb4 {[%emt 0:01:14]} 43. b6 {[%emt 0:00:51]} Rdb2 {[%emt 0:03:04]} 44. Qd5 {[%emt 0:01:40]} Kh6 {[%emt 0:00:48]} 45. Qg8 {[%emt 0:02:27]} Rxb6 {[%emt 0:04:40]} 46. Qh8+ {[%emt 0:00:55]} Kg6 {[%emt 0:00:24]} 47. Qe8+ {[%emt 0:00:09]} Kh7 {[%emt 0:01:00]} 1/2-1/2